bitfinex/quotes_BTCUSD_20220212
["timestamp","ask_amount","ask_price","bid_price","bid_amount"]
[1644647200149,0.30016,42200.0,42190.0,0.5]
[1644647200343,0.0001,42199.0,42190.0,0.5]
[1644647200544,0.24521299,42199.0,42190.0,0.5]
[1644647200745,0.00031197,42197.0,42190.0,0.5]
[1644647200944,0.00031197,42197.0,42190.0,0.00015323]
[1644647201146,0.00031197,42197.0,42189.0,0.07570897]
[1644647201608,0.19987323,42197.0,42189.0,0.00015323]
[1644647201805,0.00046592,42195.0,42184.0,0.00015323]
[1644647202107,0.00056592,42195.0,42183.0,0.05015323]
[1644647202504,0.00056592,42195.0,42187.0,0.06958456]
[1644647202904,0.00041014,42195.0,42187.0,0.06958456]
[1644647203306,0.26049058,42192.0,42185.0,0.00015323]
[1644647203505,0.26049058,42192.0,42184.0,0.00015323]
[1644647203706,0.5187965,42192.0,42182.0,0.00015323]
[1644647203905,0.5187965,42192.0,42179.0,0.20242045]
[1644647203906,0.6187965,42192.0,42180.0,0.00015323]
[1644647204106,0.6187965,42192.0,42179.0,0.20257368]
[1644647204308,0.6187965,42192.0,42179.0,0.00104227]
[1644647204508,0.6187965,42192.0,42182.0,0.07025485]
[1644647205107,0.6187965,42192.0,42182.0,0.07040808]
[1644647205349,0.6187965,42192.0,42182.0,0.25909052]
[1644647205546,0.6187965,42192.0,42182.0,0.07087408]
[1644647206145,0.36049058,42192.0,42182.0,0.07087408]
[1644647206347,0.24919096,42193.0,42182.0,0.07040808]
[1644647206647,0.24919096,42193.0,42182.0,0.07087408]
[1644647206847,0.24919096,42193.0,42182.0,0.00996408]
[1644647207247,0.24919096,42193.0,42182.0,0.24996408]
[1644647207646,0.24919096,42193.0,42182.0,0.24949808]
[1644647207851,0.0001,42192.0,42182.0,0.24996408]
[1644647208747,0.0001,42192.0,42182.0,0.24949808]
[1644647209004,0.0001,42192.0,42182.0,0.24996408]
[1644647209206,0.25753405,42193.0,42192.0,2.898e-05]
[1644647210808,0.2247659,42195.0,42192.0,2.898e-05]
[1644647211010,0.1747659,42195.0,42192.0,2.898e-05]
[1644647211211,0.1743,42195.0,42192.0,2.898e-05]
[1644647213548,0.37417323,42195.0,42192.0,2.898e-05]
[1644647213947,0.47417323,42195.0,42192.0,2.898e-05]
[1644647214447,0.0001,42194.0,42192.0,2.898e-05]
[1644647215454,0.19987323,42193.0,42192.0,2.898e-05]
[1644647215749,0.62361226,42193.0,42192.0,2.898e-05]
[1644647215950,0.42373903,42193.0,42192.0,2.898e-05]
[1644647216150,0.52373903,42193.0,42192.0,2.898e-05]
[1644647218196,0.72391762,42193.0,42192.0,2.898e-05]
[1644647218598,0.67391034,42193.0,42192.0,2.898e-05]
[1644647218800,0.2001,42193.0,42192.0,0.24002898]
[1644647218997,0.53087355,42193.0,42192.0,0.24002898]
[1644647219197,0.43087355,42193.0,42192.0,0.24002898]
[1644647219397,0.53087355,42193.0,42192.0,0.24002898]
[1644647219997,0.45472662,42193.0,42192.0,0.24002898]
[1644647220657,0.2001,42193.0,42192.0,0.24002898]
[1644647220852,0.35681428,42193.0,42192.0,0.24002898]
[1644647221252,0.53577523,42193.0,42192.0,0.24002898]
[1644647222153,0.45681428,42193.0,42192.0,0.24002898]
[1644647222355,0.2001,42193.0,42192.0,0.24002898]
[1644647222752,0.1001,42193.0,42192.0,0.24002898]
[1644647222953,0.0001,42193.0,42192.0,0.24002898]
[1644647223156,0.0001,42194.0,42192.0,0.24002898]
[1644647223990,0.20027131,42194.0,42192.0,0.24002898]
[1644647224190,0.25360202,42193.0,42192.0,0.24002898]
[1644647224390,0.35360202,42193.0,42192.0,0.24002898]
[1644647224790,0.45360202,42193.0,42192.0,0.24002898]
[1644647225191,0.2001,42193.0,42192.0,0.24002898]
[1644647225592,0.1501,42193.0,42192.0,0.24002898]
[1644647225798,0.0501,42193.0,42192.0,0.24002898]
[1644647226393,0.0001,42193.0,42192.0,0.24002898]
[1644647226592,0.0001,42194.0,42192.0,0.24002898]
[1644647228556,0.20027131,42194.0,42192.0,0.24002898]
[1644647228752,0.25605302,42193.0,42192.0,0.24002898]
[1644647230549,0.35605302,42193.0,42192.0,0.24002898]
[1644647230851,0.45605302,42193.0,42192.0,0.24002898]
[1644647231055,0.25605302,42193.0,42192.0,0.24002898]
[1644647231251,0.0001,42193.0,42192.0,0.24002898]
[1644647231696,0.0501,42194.0,42192.0,0.24002898]
[1644647231996,0.0001,42193.0,42192.0,0.24002898]
[1644647232197,0.0001,42193.0,42192.0,0.23994286]
[1644647232397,0.25646253,42193.0,42192.0,0.23994286]
[1644647232697,0.30646253,42193.0,42192.0,0.23994286]
[1644647232896,0.40646253,42193.0,42192.0,0.23994286]
[1644647233196,0.48468478,42193.0,42192.0,0.23994286]
[1644647233396,0.43468478,42193.0,42192.0,0.23994286]
[1644647233598,0.07832225,42193.0,42192.0,0.23994286]
[1644647233995,0.20017131,42194.0,42192.0,0.23994286]
[1644647234196,0.45396877,42194.0,42192.0,0.23994286]
[1644647234397,0.25300429,42193.0,42192.0,0.23994286]
[1644647235244,0.32887354,42193.0,42192.0,0.23994286]
[1644647235443,0.35017131,42194.0,42192.0,0.23994286]
[1644647235644,0.15,42194.0,42192.0,0.23994286]
[1644647235843,0.05,42194.0,42192.0,0.23994286]
[1644647236245,0.05974358,42195.0,42192.0,0.23994286]
[1644647236445,0.109278,42195.0,42192.0,0.24105746]
[1644647236644,0.05046558,42195.0,42192.0,0.24105746]
[1644647236849,0.20063689,42195.0,42192.0,0.24105746]
[1644647237444,0.20063689,42195.0,42192.0,0.25105746]
[1644647237647,0.40017131,42196.0,42192.0,0.25105746]
[1644647238046,0.40063689,42196.0,42192.0,0.25105746]
[1644647238648,0.65417367,42196.0,42192.0,0.25105746]
[1644647238853,0.20017131,42194.0,42192.0,0.25105746]
[1644647239099,0.25017131,42194.0,42192.0,0.25105746]
[1644647239299,0.25017131,42194.0,42192.0,0.01961846]
[1644647239500,0.25400374,42193.0,42192.0,0.01961846]
[1644647241103,0.55417505,42193.0,42192.0,0.01961846]
[1644647241303,0.65417505,42193.0,42192.0,0.01961846]
[1644647241506,0.72565334,42193.0,42192.0,0.01961846]
[1644647241803,0.52548203,42193.0,42192.0,0.00189871]
[1644647242103,0.77536302,42193.0,42192.0,0.00189871]
[1644647242304,0.52548203,42193.0,42192.0,0.00189871]
[1644647243351,0.52548203,42193.0,42192.0,0.00199871]
[1644647244560,0.57288203,42193.0,42192.0,0.00199871]
[1644647244755,0.80021872,42193.0,42192.0,0.00199871]
[1644647245356,0.80024175,42193.0,42192.0,0.00199871]
[1644647246360,0.92329735,42193.0,42192.0,0.00199871]
[1644647247296,0.92329735,42193.0,42183.0,0.00015323]
[1644647247297,0.059295,42185.0,42183.0,0.00015323]
[1644647247495,0.4637582,42184.0,42182.0,0.00046572]
[1644647247794,0.6137582,42184.0,42182.0,0.00046572]
[1644647247994,0.6637582,42184.0,42182.0,0.00046572]
[1644647248395,0.40022683,42184.0,42181.0,0.00015323]
[1644647248598,0.40022683,42184.0,42181.0,0.00046566]
[1644647248798,0.2,42184.0,42181.0,0.00061889]
[1644647248998,0.2,42184.0,42181.0,0.00046566]
[1644647249200,0.25952183,42185.0,42181.0,0.00061889]
[1644647249400,0.059295,42185.0,42181.0,0.00046566]
[1644647249601,0.20022683,42186.0,42181.0,0.00015323]
[1644647249798,0.20022683,42186.0,42181.0,0.00046566]
[1644647249999,0.20022683,42186.0,42181.0,0.00061889]
[1644647250254,0.20022683,42186.0,42181.0,0.00046566]
[1644647250449,0.50867939,42187.0,42181.0,0.00061889]
[1644647250450,0.70890622,42187.0,42181.0,0.00061889]
[1644647250652,0.70890622,42187.0,42181.0,0.00046566]
[1644647250849,0.75890622,42187.0,42181.0,0.00015323]
[1644647251051,0.20022683,42186.0,42182.0,0.00046566]
[1644647251449,0.60890622,42187.0,42182.0,0.00046566]
[1644647251649,0.55890622,42187.0,42182.0,0.00046566]
[1644647252053,0.44400622,42187.0,42182.0,0.00015323]
[1644647252250,0.44400622,42187.0,42182.0,0.00046566]
[1644647252450,0.20022683,42186.0,42182.0,0.00061889]
[1644647252650,0.44400622,42187.0,42182.0,0.00061889]
[1644647253050,0.24377939,42187.0,42182.0,0.00061889]
[1644647253249,0.24377939,42187.0,42182.0,0.00015323]
[1644647253450,0.24377939,42187.0,42181.0,0.24]
[1644647253651,0.24377939,42187.0,42181.0,0.24015323]
[1644647253852,0.24377939,42187.0,42181.0,0.24]
[1644647254092,0.24377939,42187.0,42181.0,0.24015323]
[1644647254292,0.24377939,42187.0,42181.0,0.24]
[1644647254492,0.30022683,42188.0,42181.0,0.24015323]
[1644647254700,0.30022683,42188.0,42182.0,0.00046527]
[1644647254893,0.2,42188.0,42182.0,0.0006185]
[1644647255295,0.59672683,42192.0,42182.0,0.20214991]
[1644647255593,0.59672683,42192.0,42183.0,0.20805089]
[1644647255793,0.59672683,42192.0,42183.0,0.20820412]
[1644647256093,0.3965,42192.0,42183.0,0.20820412]
[1644647256293,0.3965,42192.0,42183.0,0.40973553]
[1644647256494,0.4465,42192.0,42183.0,0.40973553]
[1644647256694,0.5465,42192.0,42183.0,0.40973553]
[1644647257095,0.5465,42192.0,42183.0,0.4095823]
[1644647257297,0.5465,42192.0,42183.0,0.40973553]
[1644647257752,0.20022683,42191.0,42183.0,0.00015323]
[1644647258051,0.20022683,42191.0,42182.0,0.00015323]
[1644647258251,0.20022683,42191.0,42182.0,0.00046529]
[1644647258454,0.20022683,42191.0,42182.0,0.00061852]
[1644647258852,0.20022683,42190.0,42182.0,0.00061852]
[1644647259052,0.20022683,42191.0,42182.0,0.00061852]
[1644647259255,0.24099601,42188.0,42182.0,0.00015323]
[1644647259452,0.24099601,42188.0,42181.0,0.48893141]
[1644647259453,0.24099601,42188.0,42181.0,0.2874]
[1644647259653,0.34099601,42188.0,42182.0,0.00046529]
[1644647259855,0.20022683,42187.0,42182.0,0.00061852]
[1644647260054,0.20022683,42186.0,42182.0,0.00061852]
[1644647260253,0.58015752,42185.0,42182.0,0.00061852]
[1644647260752,0.58015752,42185.0,42182.0,0.00015323]
[1644647260753,0.05,42184.0,42182.0,0.00015323]
[1644647260953,0.05,42184.0,42181.0,0.24046527]
[1644647261255,0.73015752,42185.0,42181.0,0.2406185]
[1644647261496,0.73015752,42185.0,42181.0,0.24046527]
[1644647261497,0.52993069,42185.0,42181.0,0.24046527]
[1644647261696,0.52993069,42185.0,42181.0,0.24015323]
[1644647261898,0.4578496,42185.0,42181.0,0.24046528]
[1644647262101,0.4578496,42185.0,42181.0,0.24061851]
[1644647262297,0.4578496,42185.0,42181.0,0.24046528]
[1644647262298,0.2,42185.0,42181.0,0.24046528]
[1644647262503,0.2,42185.0,42181.0,0.24061851]
[1644647262798,0.05,42185.0,42181.0,0.24046528]
[1644647262998,0.05,42185.0,42181.0,0.24015323]
[1644647263200,0.06419151,42185.0,42181.0,0.24046528]
[1644647263400,0.06419151,42185.0,42183.0,0.0003693]
[1644647263804,0.25387953,42184.0,42183.0,0.0003693]
[1644647264799,0.26419151,42185.0,42183.0,0.0003693]
[1644647265446,0.26538936,42184.0,42183.0,0.0003693]
[1644647266048,0.7,42182.0,42175.0,0.0044]
[1644647266250,0.7,42182.0,42170.0,0.0022]
[1644647266251,0.05,42179.0,42170.0,0.0022]
[1644647266448,0.20022683,42175.0,42170.0,0.25423592]
[1644647266644,0.20022683,42175.0,42170.0,0.0022]
[1644647266849,0.3,42174.0,42170.0,0.0022]
[1644647267046,0.07208,42171.0,42170.0,0.0022]
[1644647267246,0.16948,42171.0,42170.0,0.0011]
[1644647267446,0.21948,42171.0,42170.0,0.0011]
[1644647267649,0.21948,42171.0,42168.0,0.0022]
[1644647267650,0.7,42170.0,42168.0,0.0022]
[1644647267851,0.7,42168.0,42167.0,0.0011]
[1644647268046,0.7,42168.0,42165.0,0.0011]
[1644647268047,0.7,42167.0,42165.0,0.0011]
[1644647268249,0.59836872,42166.0,42165.0,0.0011]
[1644647268448,0.59836872,42166.0,42162.0,0.0033]
[1644647268449,0.7,42165.0,42162.0,0.0033]
[1644647268649,0.7474,42165.0,42162.0,0.0033]
[1644647268849,0.8474,42165.0,42162.0,0.0033]
[1644647269294,0.8474,42165.0,42163.0,0.00177191]
[1644647269497,0.1474,42165.0,42163.0,0.00177191]
[1644647269900,0.0474,42165.0,42163.0,0.00177191]
[1644647270501,0.05,42166.0,42163.0,0.00177191]
[1644647270698,0.66311592,42169.0,42163.0,0.00177191]
[1644647271098,0.059314,42168.0,42163.0,0.00177191]
[1644647271298,0.71311592,42169.0,42163.0,0.00177191]
[1644647271498,0.66311592,42169.0,42163.0,0.00177191]
[1644647271800,0.46311592,42169.0,42163.0,0.00223531]
[1644647272398,0.2,42169.0,42163.0,0.00223531]
[1644647272600,0.113,42172.0,42163.0,0.00223531]
[1644647272601,0.113,42172.0,42163.0,0.00177191]
[1644647272861,0.113,42172.0,42164.0,0.0004634]
[1644647273459,0.24319996,42170.0,42164.0,0.0004634]
[1644647273659,0.30250896,42170.0,42164.0,0.0004634]
[1644647273860,0.00011418,42165.0,42163.0,0.00177191]
[1644647274259,0.00011418,42165.0,42164.0,0.24]
[1644647275460,0.00011418,42165.0,42163.0,0.00177191]
[1644647276509,0.00011418,42165.0,42163.0,0.2667244]
[1644647279314,0.11873416,42170.0,42163.0,0.2667244]
[1644647279512,0.05,42169.0,42163.0,0.2667244]
[1644647279712,0.1,42169.0,42163.0,0.2667244]
[1644647280013,0.1,42169.0,42164.0,0.00046245]
[1644647280649,0.1,42169.0,42164.0,0.08533426]
[1644647281048,0.1,42169.0,42164.0,0.08487181]
[1644647281247,0.1,42169.0,42164.0,0.08533426]
[1644647281947,0.1,42169.0,42164.0,0.0854857]
[1644647282149,0.1,42169.0,42164.0,0.08502325]
[1644647282349,0.1,42169.0,42164.0,0.0854857]
[1644647282848,0.1,42169.0,42164.0,0.00061389]
[1644647283452,0.1,42169.0,42164.0,0.00015144]
[1644647283748,0.05011449,42169.0,42164.0,0.00046245]
[1644647283994,0.05011449,42169.0,42164.0,0.00061389]
[1644647284196,0.05942515,42169.0,42164.0,0.00061389]
[1644647284596,0.15942515,42169.0,42164.0,0.00015144]
[1644647284796,0.15942515,42169.0,42164.0,0.00061389]
[1644647285199,0.10011449,42169.0,42164.0,0.00061389]
[1644647285798,0.10011449,42169.0,42164.0,0.00015144]
[1644647286002,0.10011449,42169.0,42164.0,0.00046245]
[1644647286198,0.10011449,42169.0,42164.0,0.00061389]
[1644647286802,0.00011449,42169.0,42164.0,0.00061389]
[1644647287003,0.00011449,42169.0,42165.0,0.05]
[1644647287302,0.00011449,42169.0,42166.0,0.0474]
[1644647287499,0.00011449,42169.0,42166.0,0.04755144]
[1644647287947,0.00011449,42169.0,42166.0,0.10684144]
[1644647288749,0.00011449,42169.0,42166.0,0.50590387]
[1644647288950,0.00011449,42169.0,42166.0,0.24854144]
[1644647289149,0.00011449,42169.0,42167.0,0.34185625]
[1644647289349,0.00011449,42169.0,42168.0,0.0474]
[1644647289950,0.00046281,42173.0,42169.0,0.00011385]
[1644647290154,0.00046281,42173.0,42170.0,0.106686]
[1644647290352,0.00046281,42173.0,42171.0,0.321576]
[1644647290555,0.0001,42185.0,42172.0,0.0474]
[1644647290753,0.00044681,42174.0,42172.0,0.0474]
[1644647290958,0.00044681,42174.0,42173.0,0.30242236]
[1644647291156,0.00044681,42174.0,42173.0,0.0474]
[1644647291799,0.27436883,42182.0,42173.0,0.0474]
[1644647291999,0.0004468,42176.0,42173.0,0.0474]
[1644647292599,0.0004468,42176.0,42173.0,0.03922508]
[1644647293099,0.48366283,42182.0,42173.0,0.03922508]
[1644647293299,0.0004468,42177.0,42173.0,0.03922508]
[1644647293900,0.21252714,42175.0,42173.0,0.03922508]
[1644647294101,0.21252714,42175.0,42173.0,0.03911389]
[1644647294303,0.26242684,42175.0,42173.0,0.03911389]
[1644647294501,0.08836323,42174.0,42170.0,0.00015144]
[1644647294702,0.08836323,42174.0,42169.0,0.00057675]
[1644647294903,0.36242684,42175.0,42169.0,0.00057675]
[1644647295346,0.36242684,42175.0,42169.0,0.00011385]
[1644647295546,0.36242684,42175.0,42169.0,0.00057674]
[1644647295745,0.00046283,42174.0,42169.0,0.00057674]
[1644647296543,0.36242684,42175.0,42169.0,0.00011385]
[1644647296743,0.36242684,42175.0,42169.0,0.00057673]
[1644647296943,0.36242684,42175.0,42164.0,0.26707641]
[1644647296944,0.3,42173.0,42164.0,0.26707641]
[1644647297144,0.00046283,42174.0,42164.0,0.27134824]
[1644647297544,0.00046283,42174.0,42171.0,0.22235171]
[1644647297744,0.2149,42181.0,42171.0,0.22235171]
[1644647298145,0.2,42181.0,42171.0,0.22235171]
[1644647298647,0.05,42181.0,42171.0,0.22235171]
[1644647298997,0.05,42180.0,42171.0,0.22235171]
[1644647299193,0.24884198,42183.0,42172.0,0.29751773]
[1644647299194,0.05,42182.0,42172.0,0.29751773]
[1644647299396,0.08978566,42181.0,42172.0,0.12305176]
[1644647299594,0.18978566,42181.0,42171.0,0.22235171]
[1644647300194,0.1,42181.0,42178.0,0.25928417]
[1644647300595,0.05,42181.0,42178.0,0.25928417]
[1644647300795,0.05,42180.0,42178.0,0.25928417]
[1644647301399,0.05,42182.0,42178.0,0.25928417]
[1644647302096,0.29884198,42183.0,42178.0,0.25928417]
[1644647302097,0.00046281,42181.0,42178.0,0.25928417]
[1644647302749,0.24884198,42183.0,42178.0,0.25928417]
[1644647302945,0.0004628,42182.0,42178.0,0.25928417]
[1644647303545,0.0004628,42182.0,42173.0,0.0474]
[1644647303944,0.24884198,42183.0,42173.0,0.0474]
[1644647304148,0.00046281,42180.0,42173.0,0.0474]
[1644647304546,0.00046281,42180.0,42174.0,0.24572838]
[1644647305145,0.24884198,42183.0,42174.0,0.24572838]
[1644647305346,0.00031266,42179.0,42174.0,0.24572838]
[1644647306246,0.24884198,42183.0,42174.0,0.24572838]
[1644647306493,0.00029169,42179.0,42174.0,0.24572838]
[1644647306905,0.00029169,42179.0,42175.0,0.29710574]
[1644647307096,0.00029169,42179.0,42175.0,0.35638674]
[1644647307297,0.00029169,42179.0,42175.0,0.29710574]
[1644647307497,0.1152,42186.0,42182.0,0.2582875]
[1644647307696,0.00044226,42179.0,42177.0,0.08161731]
[1644647307896,0.00044226,42179.0,42175.0,0.0474]
[1644647308098,0.00044226,42179.0,42176.0,0.30039267]
[1644647308697,0.1152,42186.0,42180.0,0.22146987]
[1644647308898,0.52723268,42187.0,42180.0,0.22146987]
[1644647309098,0.58652068,42187.0,42180.0,0.22146987]
[1644647309300,0.63652068,42187.0,42180.0,0.22146987]
[1644647309696,0.63652068,42187.0,42175.0,0.0474]
[1644647309897,0.19984405,42186.0,42175.0,0.0474]
[1644647310097,0.25025438,42186.0,42174.0,0.0002]
[1644647310349,0.19984405,42185.0,42174.0,0.0002]
[1644647310549,0.25025438,42186.0,42174.0,0.0002]
[1644647310750,0.06727815,42182.0,42174.0,0.0002]
[1644647310948,0.32215721,42182.0,42174.0,0.20280155]
[1644647311350,0.00039274,42180.0,42174.0,0.20280155]
[1644647312352,0.25487906,42182.0,42174.0,0.20280155]
[1644647312550,0.35487906,42182.0,42174.0,0.20280155]
[1644647312751,0.00039274,42179.0,42174.0,0.20280155]
[1644647313554,0.35487906,42182.0,42174.0,0.20280155]
[1644647313753,0.00039801,42179.0,42174.0,0.20280155]
[1644647314702,0.35487906,42182.0,42174.0,0.20280155]
[1644647314900,0.00039888,42179.0,42174.0,0.20280155]
[1644647315901,0.35808883,42184.0,42174.0,0.20280155]
[1644647316103,0.00039888,42179.0,42174.0,0.20280155]
[1644647317203,0.1,42184.0,42174.0,0.20280155]
[1644647317404,0.00039808,42179.0,42174.0,0.20280155]
[1644647318253,0.24534262,42180.0,42174.0,0.20280155]
[1644647318552,0.24534262,42180.0,42174.0,0.0002]
[1644647318752,0.25890244,42179.0,42174.0,0.0002]
[1644647319552,0.34534262,42180.0,42174.0,0.0002]
[1644647319750,0.00039785,42179.0,42174.0,0.19615338]
[1644647320751,0.41776297,42182.0,42174.0,0.19615338]
[1644647320953,0.00039797,42179.0,42174.0,0.19615338]
[1644647321599,0.00039797,42179.0,42174.0,0.196085]
[1644647321999,0.57791441,42185.0,42174.0,0.196085]
[1644647322203,0.00039802,42179.0,42174.0,0.196085]
[1644647323199,0.39947508,42184.0,42174.0,0.196085]
[1644647323400,0.00039802,42179.0,42174.0,0.196085]
[1644647324100,0.00039802,42179.0,42174.0,0.00013162]
[1644647324300,0.25699679,42180.0,42174.0,0.00013162]
[1644647324499,0.06653132,42179.0,42174.0,0.00013162]
[1644647324703,0.000398,42179.0,42174.0,0.00013162]
[1644647325351,0.000398,42179.0,42175.0,0.22016402]
[1644647325551,0.1,42180.0,42175.0,0.22016402]
[1644647325749,0.00039799,42179.0,42175.0,0.22016402]
[1644647326149,0.00039799,42179.0,42174.0,0.00013162]
[1644647326749,0.47750195,42182.0,42174.0,0.00013162]
[1644647326950,0.00039799,42179.0,42174.0,0.00013162]
[1644647328149,0.1897933,42177.0,42174.0,0.00013162]
[1644647328549,0.00039799,42179.0,42174.0,0.00013162]
[1644647329202,0.34984405,42182.0,42174.0,0.00013162]
[1644647329402,0.00039799,42179.0,42174.0,7.162e-05]
[1644647329601,0.00039799,42179.0,42178.0,0.24017633]
[1644647329602,0.20024204,42179.0,42178.0,0.24017633]
[1644647329805,0.00039799,42179.0,42178.0,0.24017633]
[1644647330404,0.121,42185.0,42178.0,0.24017633]
[1644647330405,0.32084405,42185.0,42178.0,0.56591898]
[1644647330603,0.32084405,42185.0,42179.0,0.0474]
[1644647330801,0.00039799,42181.0,42179.0,0.0474]
[1644647331001,0.00039799,42181.0,42180.0,0.29575134]
[1644647331202,0.00039799,42181.0,42180.0,0.34315134]
[1644647331603,0.19984405,42186.0,42185.0,0.19762167]
[1644647331802,0.24984405,42186.0,42185.0,0.19762167]
[1644647332004,0.05,42186.0,42185.0,0.19762167]
[1644647332405,0.45028354,42187.0,42185.0,0.19762167]
[1644647333056,0.25028354,42187.0,42185.0,0.19762167]
[1644647333253,0.25028354,42187.0,42186.0,0.0474]
[1644647333455,0.25078151,42188.0,42186.0,0.0474]
[1644647333653,0.00049797,42188.0,42186.0,0.0474]
[1644647334052,0.3,42191.0,42186.0,0.0474]
[1644647334053,0.0001,42189.0,42186.0,0.0474]
[1644647334254,0.00039796,42189.0,42186.0,0.0474]
[1644647335152,0.0001,42190.0,42186.0,0.0474]
[1644647335554,0.00049796,42190.0,42186.0,0.0474]
[1644647335754,0.19563358,42191.0,42186.0,0.0474]
[1644647336154,0.1132,42192.0,42186.0,0.0474]
[1644647336353,0.35050398,42194.0,42186.0,0.0474]
[1644647337001,0.30956254,42193.0,42186.0,0.0474]
[1644647337202,0.51879112,42192.0,42186.0,0.0474]
[1644647337400,0.61879112,42192.0,42186.0,0.0474]
[1644647337609,0.71879112,42192.0,42186.0,0.0474]
[1644647338101,0.25028354,42191.0,42178.0,0.23421026]
[1644647338300,0.22881901,42185.0,42178.0,0.28161026]
[1644647338500,0.22381901,42185.0,42178.0,0.0474]
[1644647338702,0.53834582,42190.0,42174.0,0.37066354]
[1644647338901,0.38806228,42190.0,42174.0,0.71172415]
[1644647339101,0.38806228,42190.0,42176.0,0.0001513]
[1644647339102,0.68834582,42190.0,42176.0,0.0001513]
[1644647339701,0.25028354,42189.0,42176.0,0.0001513]
[1644647339902,0.24666846,42186.0,42178.0,0.1966899]
[1644647340257,0.06841629,42185.0,42176.0,0.00046331]
[1644647340853,0.32540218,42185.0,42176.0,0.00046331]
[1644647341253,0.42540218,42185.0,42175.0,0.22638664]
[1644647341451,0.42540218,42185.0,42176.0,0.00046329]
[1644647342452,0.42540218,42185.0,42175.0,0.22638664]
[1644647342651,0.42540218,42185.0,42176.0,0.00046329]
[1644647343652,0.42540218,42185.0,42175.0,0.22638664]
[1644647343853,0.42540218,42185.0,42176.0,0.00046329]
[1644647344095,0.23699014,42181.0,42176.0,0.00046329]
[1644647344701,0.42540218,42185.0,42176.0,0.00046329]
[1644647344897,0.42540218,42185.0,42175.0,0.22638664]
[1644647345097,0.47540218,42185.0,42176.0,0.00046328]
[1644647345697,0.68745967,42185.0,42176.0,0.00046328]
[1644647345897,0.47540218,42185.0,42176.0,0.00046328]
[1644647346098,0.47540218,42185.0,42175.0,0.22638664]
[1644647346297,0.42540218,42185.0,42176.0,0.00046329]
[1644647346699,0.47540218,42185.0,42176.0,0.00046329]
[1644647347099,0.20757997,42183.0,42176.0,0.00046329]
[1644647347300,0.20757997,42183.0,42175.0,0.22638664]
[1644647347601,0.05,42183.0,42176.0,0.00046329]
[1644647347861,0.25003615,42184.0,42176.0,0.00046329]
[1644647348266,0.20003615,42184.0,42176.0,0.00046329]
[1644647348462,0.20003615,42184.0,42175.0,0.22638664]
[1644647348661,0.20003615,42184.0,42176.0,0.00046329]
[1644647349063,0.35698589,42185.0,42176.0,0.00046329]
[1644647349064,0.1,42185.0,42176.0,0.00046329]
[1644647349264,0.54670461,42186.0,42176.0,0.00046329]
[1644647349662,0.54670461,42186.0,42175.0,0.42804404]
[1644647349864,0.54670461,42186.0,42176.0,0.0004633]
[1644647350763,0.54670461,42186.0,42175.0,0.42804404]
[1644647350964,0.54670461,42186.0,42176.0,0.0004633]
[1644647351164,0.2522655,42185.0,42176.0,0.0004633]
[1644647351598,0.25219184,42185.0,42176.0,0.0004633]
[1644647352000,0.45222799,42185.0,42175.0,0.22638664]
[1644647352199,0.45222799,42185.0,42176.0,0.00046329]
[1644647352399,0.55222799,42185.0,42176.0,0.00046329]
[1644647353205,0.55222799,42185.0,42175.0,0.22638664]
[1644647353400,0.55222799,42185.0,42176.0,0.00046329]
[1644647353801,0.30003615,42185.0,42176.0,0.00046329]
[1644647354002,0.18388674,42188.0,42176.0,0.56375356]
[1644647354003,0.20003615,42186.0,42176.0,0.56375356]
[1644647354201,0.1246,42188.0,42178.0,0.2016574]
[1644647355002,0.53715905,42188.0,42177.0,0.28594119]
[1644647356257,0.53715905,42188.0,42183.0,0.20182476]
[1644647356456,0.41255905,42188.0,42183.0,0.20182476]
[1644647356661,0.20003615,42188.0,42183.0,0.20182476]
[1644647356859,0.20003615,42189.0,42183.0,0.20182476]
[1644647357258,0.20003615,42190.0,42183.0,0.20182476]
[1644647358759,0.22066653,42188.0,42183.0,0.20182476]
[1644647359309,0.7,42189.0,42182.0,0.22494552]
[1644647359609,0.90003615,42189.0,42181.0,0.0474]
[1644647359808,0.20003615,42189.0,42181.0,0.0474]
[1644647360212,0.19347888,42186.0,42181.0,0.0474]
[1644647362613,0.19347888,42186.0,42177.0,0.08428379]
[1644647363261,0.19347888,42186.0,42176.0,0.26134099]
[1644647363460,0.19347888,42186.0,42176.0,0.00040359]
[1644647364060,0.19347888,42186.0,42175.0,0.95607226]
[1644647364262,0.19347888,42186.0,42176.0,0.00040359]
[1644647364661,0.29347888,42186.0,42176.0,0.00040359]
[1644647365064,0.00264135,42188.0,42176.0,0.00040359]
[1644647365263,0.00264135,42188.0,42180.0,0.3439574]
[1644647365460,0.00264135,42188.0,42182.0,0.1423]
[1644647365661,0.00264135,42188.0,42183.0,0.1897]
[1644647365865,0.00264135,42188.0,42184.0,0.0474]
[1644647366064,0.07673371,42190.0,42184.0,0.0474]
[1644647366804,0.23272805,42192.0,42184.0,0.0474]
[1644647367004,0.00043593,42192.0,42184.0,0.0474]
[1644647367203,0.00043593,42192.0,42184.0,0.34550302]
[1644647367404,0.00043593,42192.0,42185.0,0.29865491]
[1644647367603,0.50857515,42193.0,42186.0,0.0474]
[1644647367804,0.50835471,42193.0,42186.0,0.0474]
[1644647368003,0.00043594,42192.0,42186.0,0.0474]
[1644647368807,0.19991248,42192.0,42189.0,0.25027639]
[1644647369004,0.20034776,42192.0,42190.0,0.0474]
[1644647369605,0.00043528,42192.0,42190.0,0.0474]
[1644647370004,0.20013292,42193.0,42190.0,0.0474]
[1644647370005,0.19991248,42193.0,42190.0,0.0474]
[1644647370252,0.20034776,42193.0,42190.0,0.0474]
[1644647371247,0.19991248,42192.0,42190.0,0.0474]
[1644647372548,0.19991248,42192.0,42182.0,0.18826515]
[1644647372549,0.02123448,42189.0,42182.0,0.18826515]
[1644647372747,0.02123448,42189.0,42181.0,0.0474]
[1644647372748,0.22113126,42189.0,42181.0,0.0474]
[1644647372955,0.19989678,42188.0,42181.0,0.0474]
[1644647373349,0.19989678,42188.0,42177.0,0.12019212]
[1644647373549,0.21954771,42187.0,42178.0,0.23907725]
[1644647374012,0.41944449,42187.0,42178.0,0.23907725]
[1644647374209,0.41944449,42187.0,42177.0,0.118547]
[1644647374408,0.07025258,42184.0,42176.0,0.2994692]
[1644647374611,0.07025258,42184.0,42176.0,0.0478118]
[1644647374809,0.07025258,42184.0,42176.0,0.0474]
[1644647375010,0.07025258,42184.0,42176.0,0.0004118]
[1644647375210,0.21999895,42180.0,42176.0,0.0004118]
[1644647376109,0.21999895,42180.0,42174.0,7.162e-05]
[1644647376314,0.21999895,42180.0,42176.0,0.0004118]
[1644647377112,0.19989678,42184.0,42176.0,0.0004118]
[1644647377313,0.19989678,42185.0,42174.0,0.20172902]
[1644647377513,0.42269678,42186.0,42176.0,0.00041168]
[1644647378152,0.84587184,42186.0,42176.0,0.19965124]